bitfinex-derivatives/quotes_ETHF0:USTF0_20250602
["timestamp","ask_amount","ask_price","bid_price","bid_amount"]
[1748907725572,4.83,2613.5,2613.2,5.4028]
[1748907725778,4.83,2613.5,2613.3,2.195]
[1748907726178,0.76486,2613.6,2613.3,2.195]
[1748907726482,4.83,2613.5,2613.3,2.195]
[1748907726674,3.2078,2613.8,2613.4,2.275]
[1748907726881,3.2078,2613.8,2613.5,2.4145]
[1748907727083,0.005738,2614.0,2613.5,2.4145]
[1748907727278,0.005738,2614.0,2613.9,3.2078]
[1748907728674,0.770468,2614.0,2613.9,3.2078]
[1748907728876,0.005738,2614.0,2613.9,3.2078]
[1748907729784,4e-05,2614.3,2614.2,0.76467]
[1748907729971,4e-05,2614.3,2614.2,3.2078]
[1748907730170,4e-05,2614.3,2614.2,8.2078]
[1748907730383,4e-05,2614.3,2614.2,8.97247]
[1748907730586,1.92024,2615.1,2614.2,8.2078]
[1748907730772,0.76455,2614.6,2614.5,3.2078]
[1748907730978,4.829,2614.8,2614.5,3.2078]
[1748907731288,4.829,2614.8,2614.5,5.488]
[1748907731488,5.5935,2614.8,2614.5,5.488]
[1748907732575,0.76452,2614.7,2614.5,5.488]
[1748907732777,0.76455,2614.6,2614.5,5.488]
[1748907732984,5.59252,2614.8,2614.5,5.488]
[1748907733174,4.828,2614.8,2614.5,5.488]
[1748907733978,5.533198,2614.9,2614.5,7.8104]
[1748907734173,5.533198,2614.9,2614.8,3.2078]
[1748907734680,0.76448,2614.9,2614.8,3.2078]
[1748907734880,4.763,2614.9,2614.8,3.2078]
[1748907735081,5.52746,2614.9,2614.8,3.2078]
[1748907735884,4.763,2614.9,2614.8,3.2078]
[1748907736082,2.0862,2614.9,2614.8,3.2078]
[1748907736586,2.85066,2614.9,2614.8,3.2078]
[1748907737588,2.0862,2614.9,2614.8,3.2078]
[1748907738987,2.85066,2614.9,2614.8,3.2078]
[1748907739191,5.21536,2614.9,2614.8,3.2078]
[1748907740290,4.4509,2614.9,2614.5,3.2078]
[1748907740586,2.3647,2614.9,2614.8,3.2078]
[1748907741083,3.12916,2614.9,2614.8,3.2078]
[1748907741288,2.3647,2614.9,2614.8,3.2078]
[1748907741684,3.12916,2614.9,2614.8,3.2078]
[1748907741889,0.76455,2614.6,2614.5,3.2078]
[1748907742187,4.3883,2614.8,2614.5,3.2078]
[1748907742778,0.76454,2614.7,2614.5,3.2078]
[1748907743183,0.76455,2614.6,2614.5,3.2078]
[1748907743384,5.15281,2614.8,2614.5,3.2078]
[1748907743583,2.47571,2614.8,2614.5,3.2078]
[1748907743786,0.76455,2614.6,2614.5,3.2078]
[1748907744788,0.76458,2614.5,2614.4,0.005738]
[1748907744989,3.61438,2614.5,2614.4,0.005738]
[1748907745192,0.76476,2613.9,2613.8,3.2078]
[1748907745397,5.52676,2613.9,2613.8,3.2078]
[1748907745591,4.762,2613.9,2613.8,3.2078]
[1748907745987,5.52676,2613.9,2613.8,3.2078]
[1748907746489,4.762,2613.9,2613.8,3.2078]
[1748907746693,5.52676,2613.9,2613.8,3.2078]
[1748907747094,4.76186,2613.9,2613.8,3.2078]
[1748907749089,0.76481,2613.7,2613.6,0.005738]
[1748907750095,0.76484,2613.6,2613.5,0.07069789]
[1748907750294,0.76496,2613.2,2613.1,4.47159807]
[1748907750506,5.52696,2613.2,2613.1,4.47159807]
[1748907751094,5.52696,2613.2,2613.1,1.26379807]
[1748907752101,0.76496,2613.2,2613.1,1.26379807]
[1748907752300,0.005738,2613.4,2613.1,4.47159807]
[1748907752600,4.768738,2613.4,2613.1,4.47159807]
[1748907752802,0.76496,2613.2,2613.1,4.47159807]
[1748907753798,0.76496,2613.2,2613.1,1.26379807]
[1748907754105,3.621298,2613.4,2613.1,1.26379807]
[1748907754306,0.76496,2613.2,2613.1,1.26379807]
[1748907755201,5.52796,2613.2,2613.1,1.26379807]
[1748907757209,0.76502,2613.0,2612.9,0.005738]
[1748907757812,5.76502,2613.0,2612.9,0.005738]
[1748907758305,24.77602,2613.0,2612.9,0.005738]
[1748907758608,1.91264,2612.9,2612.2,5.4433]
[1748907758800,0.76522,2612.3,2612.2,3.2078]
[1748907759106,5.51392,2612.3,2612.2,3.2078]
[1748907760105,0.76528,2612.2,2612.0,3.213538]
[1748907760305,0.76527,2612.2,2612.1,3.2078]
[1748907760697,4.764,2612.3,2612.0,0.005738]
[1748907760894,0.4294,2612.2,2612.0,0.005738]
[1748907761310,1.19468,2612.2,2612.0,0.005738]
[1748907761802,0.76528,2612.2,2612.0,0.005738]
[1748907762001,5.52924,2612.3,2612.1,3.2078]
[1748907762201,4.76404,2612.3,2612.1,5.5438]
[1748907762400,2.85004,2612.3,2612.2,2.336]
[1748907763205,0.76525,2612.2,2612.1,3.2078]
[1748907763803,0.76528,2612.1,2612.0,0.005738]
[1748907764699,0.17038,2612.3,2612.0,0.005738]
[1748907764907,0.76528,2612.1,2612.0,0.005738]
[1748907765809,3.12608,2612.1,2612.0,0.005738]
[1748907766000,3.2078,2612.4,2612.0,0.005738]
[1748907766308,5.36824,2612.3,2612.2,3.2078]
[1748907767909,4.60264,2612.3,2612.2,3.2078]
[1748907768512,4.60264,2612.3,2612.1,2.4367]
[1748907768513,0.76525,2612.2,2612.1,2.4367]
[1748907768809,0.76528,2612.1,2612.0,0.005738]
[1748907770016,3.83708,2612.3,2612.0,0.005738]
[1748907770211,4.6023,2612.3,2612.2,0.07069789]
[1748907770714,1.91317,2612.2,2611.3,3.2078]
[1748907770908,0.76549,2611.4,2611.3,3.2078]
[1748907771106,4.603,2611.4,2611.3,3.2078]
[1748907772809,1.91329,2612.0,2611.3,3.2078]
[1748907773018,5.36934,2611.9,2611.8,3.2078]
[1748907773517,5.36934,2611.9,2611.8,3.27849789]
[1748907774411,5.36934,2611.9,2611.8,3.2078]
[1748907775121,11.51739,2611.9,2611.5,3.2078]
[1748907775319,0.76543,2611.6,2611.5,3.2078]
[1748907775818,0.76555,2611.2,2611.1,3.213538]
[1748907776017,5.36955,2611.2,2611.1,3.213538]
[1748907777720,5.36955,2611.2,2611.1,0.005738]
[1748907779624,0.76555,2611.2,2611.1,0.005738]
[1748907779819,24.17555,2611.2,2611.1,3.213538]
[1748907780020,0.7655,2611.4,2611.1,3.213538]
[1748907780218,7.56339,2611.9,2611.1,3.213538]
[1748907780219,4.604,2611.3,2611.1,3.213538]
[1748907780423,4.604,2611.4,2611.2,4.7544]
[1748907780721,5.36951,2611.4,2611.2,4.7544]
[1748907781526,4.60391,2611.4,2611.2,4.7544]
[1748907781915,0.76552,2611.3,2611.2,4.7544]
[1748907782521,0.75032,2611.3,2611.2,4.7544]
[1748907783025,0.76555,2611.2,2611.1,3.28423589]
[1748907783527,0.76555,2611.2,2611.1,3.213538]
[1748907784515,1.40935,2611.3,2611.1,3.28423589]
[1748907784822,3.76552997,2612.3,2611.1,3.28423589]
[1748907785025,5.37045,2611.6,2611.2,2.5815]
[1748907785321,5.37045,2611.6,2611.4,3.2078]
[1748907785518,5.37045,2611.6,2611.5,2.4469]
[1748907786028,3.45575,2611.6,2611.5,2.4469]
[1748907786423,2.82615,2611.6,2611.5,2.4469]
[1748907786919,2.0607,2611.6,2611.5,2.4469]
[1748907787125,2.0607,2611.6,2611.5,4.8935]
[1748907787626,0.76541,2611.7,2611.5,4.8935]
[1748907787923,5.3704,2611.7,2611.5,4.8935]
[1748907788521,4.605,2611.7,2611.5,4.8935]
[1748907788727,5.37041,2611.7,2611.5,4.8935]
[1748907789025,4.605,2611.7,2611.5,4.8935]
[1748907789525,5.37041,2611.7,2611.5,4.8935]
[1748907790427,5.23981,2611.7,2611.5,4.8935]
[1748907791626,0.76543,2611.6,2611.5,4.8935]
[1748907793523,3.32526,2611.7,2611.5,4.8935]
[1748907793827,0.76543,2611.6,2611.5,4.8935]
[1748907795029,2.17581,2611.7,2611.5,4.8935]
[1748907795227,0.76543,2611.6,2611.5,4.8935]
[1748907795728,2.448838,2612.1,2611.5,4.8935]
[1748907795729,0.005738,2612.1,2612.0,0.76531]
[1748907796030,3.76552997,2612.9,2612.6,0.76511]
[1748907796232,5.28606568,2613.0,2612.8,3.2078]
[1748907796423,5.28606568,2613.0,2612.9,2.3963]
[1748907796626,2.60576568,2613.0,2612.9,2.3963]
[1748907796824,0.76499,2613.1,2612.9,2.3963]
[1748907797025,0.005738,2613.2,2612.9,2.3963]
[1748907797333,0.005738,2613.2,2613.1,3.2078]
[1748907797729,0.005738,2613.2,2613.1,8.2078]
[1748907798027,0.005738,2613.2,2613.1,3.2078]
[1748907799429,4.458,2613.8,2613.1,8.2078]
[1748907799637,4.458,2613.8,2613.7,3.2078]
[1748907800728,4.458,2613.8,2612.7,0.005738]
[1748907800729,8.2078,2613.8,2611.7,3.2078]
[1748907800932,3.2078,2612.4,2611.6,3.2078]
[1748907801336,3.2078,2612.4,2611.8,0.76537]
[1748907801337,4.458,2612.3,2611.8,0.76537]
[1748907801629,3.2078,2612.4,2611.9,0.76533]
[1748907801831,0.005738,2612.4,2612.0,0.76529]
[1748907802029,0.005738,2612.4,2611.9,3.213538]
[1748907802030,0.005738,2612.4,2612.1,0.76526]
[1748907802430,0.005738,2612.4,2612.2,0.76525]
[1748907802630,0.005738,2612.4,2612.3,3.14792]
[1748907802838,0.005738,2612.4,2612.3,2.3827]
[1748907803039,0.76512,2612.7,2612.3,2.3827]
[1748907803338,2.550128,2612.8,2612.3,2.3827]
[1748907803539,1.785038,2612.8,2612.3,2.3827]
[1748907803839,2.550118,2612.8,2612.3,2.3827]
[1748907804040,0.770818,2612.8,2612.3,2.3827]
[1748907804230,5.227818,2612.8,2612.3,2.3827]
[1748907804631,2.548618,2612.8,2612.3,2.3827]
[1748907804825,3.313708,2612.8,2612.3,2.3827]
[1748907805138,3.2078,2612.9,2612.3,2.3827]
[1748907805332,0.76505,2612.9,2612.4,0.76519]
[1748907805529,0.76505,2612.9,2612.5,2.4813]
[1748907806037,0.76503,2613.0,2612.6,4.8178]
[1748907806236,3.2078,2612.9,2612.7,2.4813]
[1748907806631,47.02578,2613.2,2612.7,2.4813]
[1748907806831,47.02578,2613.2,2612.9,0.07069789]
[1748907807029,47.02578,2613.2,2613.0,2.4813]
[1748907807030,41.8038,2613.2,2613.0,2.4813]
[1748907807943,3.2078,2613.2,2613.0,2.4813]
[1748907808241,5.22193,2613.3,2613.0,2.4813]
[1748907808635,5.22196,2613.3,2613.0,2.4813]
[1748907809433,4.457,2613.3,2613.0,2.4813]
[1748907809743,1.7784,2613.3,2613.0,3.24632]
[1748907809943,1.7784,2613.3,2613.0,2.4813]
[1748907810642,1.7784,2613.3,2613.0,3.2463]
[1748907811335,4.457,2613.3,2613.0,3.2463]
[1748907811541,5.22193,2613.3,2613.0,2.4813]
[1748907812244,0.76502,2613.0,2612.9,0.07069789]
[1748907812542,4.457,2613.0,2612.9,0.07069789]
[1748907812740,2.5437,2613.0,2612.9,0.07069789]
[1748907813439,3.30872,2613.0,2612.9,0.07069789]
[1748907813840,2.54332,2613.0,2612.9,0.07069789]
[1748907814145,0.76511,2612.7,2611.8,7.6648]
[1748907814436,0.76511,2612.7,2612.2,0.76522]
[1748907814642,0.76511,2612.7,2611.9,4.790038]
[1748907814944,2.393,2612.8,2612.5,0.76514]
[1748907815342,2.393,2612.8,2612.6,2.5235]
[1748907815644,3.68677,2612.9,2612.6,2.5235]
[1748907816251,3.68675,2612.9,2612.6,2.5235]
[1748907816450,2.3692,2613.1,2612.6,2.5235]
[1748907816654,4.457,2613.0,2612.6,3.28862]
[1748907816948,3.30844,2613.0,2612.7,2.5235]
[1748907817249,2.54304,2613.0,2612.7,2.5235]
[1748907818652,1.778,2613.0,2612.7,2.5235]
[1748907819355,2.54303,2613.0,2612.7,2.5235]
[1748907819541,1.778,2613.0,2612.7,2.5235]
[1748907819846,2.3692,2613.1,2612.7,2.5235]
[1748907820055,2.5435,2613.1,2613.0,0.07069789]
[1748907821243,1.7781,2613.1,2613.0,0.07069789]
[1748907822051,2.54309,2613.1,2613.0,0.07069789]
[1748907822451,1.7781,2613.1,2613.0,0.07069789]
[1748907822652,2.54309,2613.1,2613.0,0.07069789]
[1748907822849,5.08669,2613.1,2613.0,0.07069789]
[1748907823052,4.457,2613.1,2613.0,0.07069789]
[1748907823246,5.22199,2613.1,2613.0,0.07069789]
[1748907823554,4.457,2613.1,2613.0,0.07069789]
[1748907824152,5.22199,2613.1,2613.0,0.07069789]
[1748907824556,4.457,2613.1,2613.0,0.07069789]
[1748907824957,5.22199,2613.1,2613.0,0.07069789]
[1748907825260,4.457,2613.1,2613.0,0.07069789]
[1748907825459,5.22199,2613.1,2613.0,0.07069789]
[1748907825659,4.457,2613.1,2613.0,0.07069789]
[1748907827752,5.22199,2613.1,2613.0,0.07069789]
[1748907828353,5.23499,2613.1,2613.0,0.07069789]
[1748907829160,4.47,2613.1,2613.0,0.07069789]
[1748907830059,5.23499,2613.1,2613.0,0.07069789]
[1748907830255,4.47,2613.1,2613.0,0.07069789]
[1748907830660,5.23499,2613.1,2613.0,0.07069789]
[1748907831360,4.46959,2613.1,2613.0,0.07069789]
[1748907832665,3.7046,2613.1,2613.0,0.07069789]
[1748907833466,4.46959,2613.1,2613.0,0.07069789]
[1748907833658,3.7046,2613.1,2613.0,0.07069789]
[1748907834065,1.7912,2613.1,2613.0,0.07069789]
[1748907834761,3.03299586,2613.3,2613.2,0.76496]
[1748907835060,4.47,2613.4,2613.1,2.5238]
[1748907835264,4.47,2613.4,2613.2,2.51]
[1748907835265,0.76493,2613.3,2613.2,2.51]
[1748907835466,1.39907,2613.3,2613.0,0.07069789]
[1748907835669,0.76497,2613.2,2613.1,2.3229]
[1748907835868,0.76499,2613.1,2613.0,0.07069789]
[1748907836164,5.78229,2613.2,2613.0,0.07069789]
[1748907836359,0.76499,2613.1,2613.0,0.07069789]
[1748907836865,6.54727,2613.2,2613.0,0.07069789]
[1748907837065,4.63398,2613.2,2613.0,0.07069789]
[1748907837266,0.76499,2613.1,2613.0,0.07069789]
[1748907838164,0.76508,2612.8,2612.7,2.3229]
[1748907838462,4.47,2612.8,2612.7,2.3229]
[1748907838655,4.21618,2612.8,2612.7,2.3229]
[1748907838856,3.32168,2612.8,2612.7,2.3229]
[1748907839056,2.5566,2612.8,2612.7,2.3229]
[1748907839256,2.5566,2612.8,2612.3,3.2078]
[1748907839458,0.76512,2612.7,2612.4,2.4579]
[1748907839663,2.55622,2612.8,2612.4,2.4579]
[1748907839958,0.76517,2612.5,2612.4,2.4579]
[1748907840163,38.584,2612.6,2611.5,2.22701552]
[1748907840359,3.2078,2611.6,2611.2,2.96149285]
[1748907840557,0.7655,2611.4,2611.2,2.96149285]
[1748907840759,4.9669,2611.5,2611.1,2.96149285]
[1748907840960,3.05797822,2611.8,2611.0,8.292]
[1748907841159,0.005738,2611.7,2611.3,3.2078]
[1748907842264,3.213538,2611.7,2611.3,3.2078]
[1748907842463,3.213538,2611.7,2611.1,0.005738]
[1748907842671,5.23643,2611.6,2611.1,0.005738]
[1748907843462,5.23643,2611.6,2611.1,2.428638]
[1748907843463,0.76549,2611.4,2611.1,2.428638]
[1748907843662,4.471,2611.6,2611.1,2.428638]
[1748907843863,5.23644,2611.6,2611.2,3.2078]
[1748907844059,0.76549,2611.5,2611.3,2.4229]
[1748907844474,0.76549,2611.4,2611.3,2.49359789]
[1748907845469,3.32279,2611.6,2611.3,0.07069789]
[1748907845668,0.76549,2611.4,2611.3,0.07069789]
[1748907846268,0.76547,2611.5,2611.3,0.07069789]
[1748907846571,0.005738,2611.7,2611.4,2.453]
[1748907846871,0.005378,2611.7,2611.4,2.453]
[1748907847068,0.76546,2611.5,2611.4,2.453]
[1748907847268,0.76544,2611.6,2611.4,2.453]
[1748907847578,7.9996,2612.1,2611.4,2.453]
[1748907847579,5.6015,2612.1,2611.4,2.453]
[1748907847762,4.472,2612.3,2611.5,5.6094]
[1748907847968,4.472,2612.3,2611.6,2.3854]
[1748907848274,3.2078,2612.5,2611.7,2.3932]
[1748907848479,4.472,2612.4,2611.8,6.35855]
[1748907848669,4.472,2612.4,2611.8,5.5932]
[1748907848866,3.32271,2612.4,2611.8,5.5932]
[1748907849069,2.5575,2612.4,2612.1,3.2078]
[1748907849274,3.37093,2613.0,2612.2,4.787]
[1748907849569,3.05797822,2612.9,2612.4,3.2078]
[1748907849776,3.05797822,2612.9,2612.7,3.2078]
[1748907849964,2.29237822,2612.9,2612.8,4.787]
[1748907850169,0.00615961,2613.1,2612.8,4.787]
[1748907850776,5.23699,2613.2,2612.8,4.787]
[1748907850777,2.56455961,2613.2,2612.8,4.787]
[1748907850977,0.76501,2613.1,2612.8,4.787]
[1748907851173,2.56455961,2613.2,2612.8,4.787]
[1748907851368,4.93365961,2613.2,2612.8,4.787]
[1748907851568,2.56455961,2613.2,2612.8,4.787]
[1748907851775,3.2078,2613.3,2612.8,4.787]
[1748907852173,7.6798,2613.3,2612.8,4.787]
[1748907852576,0.76496,2613.2,2612.8,4.787]
[1748907852777,0.765,2613.1,2612.8,4.787]
[1748907852979,7.6798,2613.3,2612.8,4.787]
[1748907853278,3.2078,2613.3,2612.8,4.787]
[1748907853479,2.6059,2613.5,2613.0,3.2078]
[1748907853684,3.2078,2613.9,2613.1,2.5178]
[1748907853881,0.76486,2613.6,2613.1,2.5178]
[1748907854180,4.471,2613.7,2613.1,2.5178]
[1748907854371,3.7057,2613.7,2613.2,3.28125]
[1748907854571,3.7057,2613.7,2613.3,2.3939]
[1748907854768,3.2078,2613.9,2613.3,2.3939]
[1748907854972,6.9753,2614.1,2613.4,3.37708]
[1748907855177,6.9753,2614.1,2613.5,2.3939]
[1748907855378,0.76479,2613.8,2613.5,2.3939]
[1748907855581,3.2078,2613.8,2613.2,2.5163]
[1748907855778,0.76493,2613.3,2613.2,2.5163]
[1748907855983,0.76492,2613.4,2613.2,2.5163]
[1748907856278,7.6468,2613.5,2613.0,2.3939]
[1748907856580,0.76496,2613.2,2613.0,2.3939]
[1748907856881,3.97276,2613.2,2613.0,2.3939]
[1748907857086,0.76497,2613.2,2612.7,2.5163]
[1748907857275,3.97279,2613.1,2612.7,4.8963]
[1748907857574,4.439,2613.0,2612.5,3.213538]
[1748907857783,7.79243,2613.0,2612.5,0.005738]
[1748907857982,7.79243,2613.0,2612.6,2.38]
[1748907858478,2.5884,2613.0,2612.6,3.14513]
[1748907858780,4.439,2612.9,2612.6,4.7861]
[1748907858981,3.9728,2613.1,2612.7,4.9611]
[1748907859180,4.439,2612.9,2612.8,2.38]
[1748907859379,3.2078,2613.1,2612.8,2.38]
[1748907859876,3.2078,2613.1,2612.9,0.76503]
[1748907860076,4.439,2613.3,2613.0,2.4686]
[1748907860378,2.5262,2613.3,2613.0,2.4686]
[1748907860584,3.20775,2613.1,2612.7,2.5811]
[1748907860778,0.76499,2613.1,2613.0,0.07069789]
[1748907861385,2.4086,2613.2,2613.0,0.07069789]
[1748907861685,0.76499,2613.1,2612.8,2.4686]
[1748907862076,0.76501,2613.1,2612.8,2.4686]
[1748907862374,5.20401,2613.1,2612.8,5.6764]
[1748907862570,5.204,2613.1,2612.8,5.6764]
[1748907862775,5.204,2613.1,2613.0,0.07069789]
[1748907863380,4.4386,2613.1,2613.0,0.07069789]
[1748907863585,2.5252,2613.1,2613.0,0.07069789]
[1748907864880,0.76503,2613.0,2612.8,5.6764]
[1748907865082,3.2078,2612.9,2612.5,0.005738]
[1748907865280,0.7651,2612.8,2612.5,0.005738]
[1748907865488,0.76511,2612.7,2612.5,0.005738]
[1748907865991,0.76512,2612.7,2612.5,0.005738]
[1748907866288,5.20414,2612.6,2612.5,0.005738]
[1748907866691,12.6468,2612.6,2611.6,3.2078]
[1748907866890,12.6468,2612.6,2611.0,1.11601602]
[1748907866891,0.76537,2611.8,2611.7,2.5442]
[1748907867186,5.20437,2611.8,2611.7,2.5442]
[1748907868189,0.7654,2611.7,2611.5,2.380838]
[1748907868382,5.20439,2611.8,2611.5,2.380838]
[1748907868588,5.20439,2611.8,2611.6,2.5442]
[1748907869389,0.7654,2611.7,2611.6,2.5442]
[1748907869987,0.76543,2611.6,2611.5,0.005738]
[1748907870287,0.76546,2611.6,2611.5,0.005738]
[1748907871289,3e-05,2611.6,2611.5,5.771198]
[1748907871589,2.530368,2612.2,2611.7,0.76538]
[1748907871792,1.764568,2612.2,2612.0,3.2078]
[1748907871978,1.764568,2612.2,2612.1,2.4397]
[1748907872386,1.764568,2612.2,2612.1,4.8563]
[1748907872585,0.76524,2612.3,2612.1,4.8563]
[1748907872779,0.76524,2612.3,2612.2,2.6416]
[1748907873192,3.29114,2612.4,2612.2,2.6416]
[1748907873389,0.76524,2612.3,2612.2,2.6416]
[1748907873591,4.44,2612.8,2612.2,2.6416]
[1748907873887,2.5323,2612.9,2612.2,2.6416]
[1748907873888,2.5323,2612.9,2612.3,3.2078]
[1748907874086,5.20509,2612.8,2612.4,2.6416]
[1748907874295,4.43949,2612.8,2612.4,2.6416]
[1748907874684,0.76511,2612.7,2612.4,2.6416]
[1748907874891,0.76517,2612.5,2612.4,2.6416]
[1748907875993,0.76515,2612.6,2612.4,2.6416]
[1748907876194,4.44,2612.5,2612.4,2.6416]
[1748907876591,4.44,2612.5,2612.1,2.4166]
[1748907876794,5.20518,2612.5,2612.2,2.4289]
[1748907877390,4.44,2612.5,2612.2,2.4289]
[1748907877695,3.29089,2612.5,2612.2,2.4289]
[1748907877997,2.52571,2612.5,2612.2,2.4289]
[1748907878293,7.6478,2612.7,2612.2,3.19413]
[1748907878801,7.6478,2612.7,2612.3,2.5776]
[1748907879402,8.41291,2612.7,2612.3,2.5776]
[1748907879691,6.8823,2612.7,2612.4,0.76518]
[1748907879891,4.9686,2612.7,2612.5,2.5776]
[1748907880096,4.44,2612.7,2612.5,2.5776]
[1748907880796,4.44,2612.9,2612.6,5.1271]
[1748907881004,4.44,2613.0,2612.7,5.7854]
[1748907881198,5.20502,2613.0,2612.8,2.5607]
[1748907881701,4.44,2613.0,2612.8,2.5607]
[1748907882303,1.761,2613.0,2612.8,2.5607]
[1748907882708,2.52603,2613.0,2612.8,2.5607]
[1748907883002,0.76505,2612.9,2612.8,2.5607]
[1748907883898,2.52603,2613.0,2612.8,2.5607]
[1748907884101,2.52602,2613.0,2612.8,2.5607]
[1748907884502,3.6736,2612.9,2612.8,2.5607]
[1748907884698,3.6736,2612.9,2612.4,3.2078]
[1748907884902,3.6736,2612.9,2612.5,2.4776]
[1748907885203,3.6736,2612.9,2611.6,3.2078]
[1748907885204,3.2078,2612.6,2611.6,3.2078]
[1748907885401,31.0077,2612.5,2611.8,0.76537]
[1748907885602,0.76521,2612.4,2611.9,2.4776]
[1748907885806,3.41491,2612.4,2611.9,2.4776]
[1748907886003,0.73593,2612.4,2611.9,2.4776]
[1748907886203,0.76524,2612.3,2611.9,2.4776]
[1748907886504,0.73593,2612.4,2611.9,2.4776]
[1748907886902,0.76531,2612.0,2611.9,2.4776]
[1748907887101,0.76529,2612.1,2611.6,3.2078]
[1748907887308,4.432,2612.0,2611.7,2.5123]
[1748907887500,1.7525,2612.0,2611.7,2.5123]
[1748907887700,1.7525,2612.0,2611.7,5.1313]
[1748907887904,3.2078,2612.3,2611.7,5.1313]
[1748907888106,4.432,2612.0,2611.8,2.5123]
[1748907888704,4.432,2612.1,2611.8,2.5123]
[1748907888904,0.76525,2612.3,2611.9,3.2078]
[1748907889202,4.432,2612.2,2612.0,2.5123]
[1748907889415,4.43167,2612.2,2612.0,2.5123]
[1748907890008,3.6664,2612.2,2612.0,2.5123]
[1748907890214,1.7525,2612.2,2612.0,2.5123]
[1748907890705,0.9869,2612.2,2612.0,2.5123]
[1748907891106,0.76523,2612.3,2612.0,2.5123]
[1748907891307,5.19724,2612.3,2612.0,2.5123]
[1748907891808,3.28314,2612.3,2612.0,2.5123]
[1748907892409,2.51754,2612.3,2612.0,2.5123]
[1748907893105,6.24520691,2612.6,2612.0,2.5123]
[1748907893302,0.76515,2612.6,2612.1,3.39976]
[1748907893500,4.432,2612.7,2612.3,0.76521]
[1748907893698,7.90746525,2613.2,2612.2,5.8293]
[1748907893699,3.79666525,2613.4,2612.6,5.12063]
[1748907894010,5.31807422,2613.5,2613.3,3.97272]
[1748907894207,5.31807422,2613.5,2613.4,5.2076]
[1748907894404,5.31807422,2613.5,2613.4,7.8147]
[1748907894608,0.76479,2613.8,2613.4,7.8147]
[1748907894810,0.7648,2613.8,2613.4,7.8147]
[1748907895113,0.76478,2613.9,2613.4,7.8147]
[1748907895505,3.61529,2614.1,2613.4,7.8147]
[1748907895701,0.76474,2614.0,2613.4,7.8147]
[1748907895897,0.76477,2613.9,2613.4,7.8147]
[1748907896102,0.76474,2614.0,2613.4,7.8147]
[1748907896301,2.4668,2614.1,2613.4,8.5796]
[1748907896510,2.4668,2614.1,2613.4,7.8147]
[1748907896705,0.76472,2614.1,2613.4,7.8147]
[1748907896906,0.76473,2614.0,2613.4,7.8147]
[1748907897113,3.2078,2614.0,2613.4,2.6215]
[1748907897307,0.76477,2613.9,2613.4,2.6215]
[1748907897614,2.4427,2613.7,2613.4,2.6215]
[1748907897811,2.0632,2613.7,2613.4,2.6215]
[1748907898606,4.5216,2613.7,2613.4,2.6215]
[1748907899212,3.7564,2613.7,2613.4,2.6215]
[1748907899611,6.6542,2613.7,2613.4,2.6215]
[1748907899808,6.6542,2613.7,2613.4,5.8293]
[1748907900211,0.76486,2613.6,2613.4,5.8293]
[1748907900410,0.76487,2613.5,2613.1,0.005738]
[1748907900610,3.53169,2613.5,2613.1,0.005738]
[1748907900914,2.7668,2613.5,2613.1,2.544538]
[1748907901314,3.53168,2613.5,2613.1,2.544538]
[1748907901612,2.7668,2613.5,2613.1,2.544538]
[1748907901915,1.2668,2613.5,2613.1,2.544538]
[1748907902113,4.431,2613.7,2613.4,0.7649]
[1748907902310,3.2078,2613.9,2613.5,5.2522]
[1748907902521,3.1926,2613.9,2613.5,5.2522]
[1748907902812,4.431,2614.1,2613.6,3.2078]
[1748907903015,23.099,2614.1,2613.7,2.4485]
[1748907903318,4.431,2614.1,2613.9,3.2078]
[1748907903517,23.099,2614.1,2614.0,2.4485]
[1748907903818,23.8637,2614.1,2614.0,2.4485]
[1748907904411,23.8637,2614.1,2613.6,3.2078]
[1748907904412,28.099,2614.1,2613.6,3.2078]
[1748907904611,28.099,2614.1,2613.2,2.681]
[1748907904612,0.76485,2613.6,2613.3,5.6563]
[1748907904913,0.76483,2613.7,2613.3,5.6563]
[1748907905224,0.76481,2613.8,2613.3,5.6563]
[1748907905418,0.76476,2613.9,2613.3,5.6563]
[1748907905615,23.098,2613.8,2613.6,3.2078]
[1748907905810,3.43584,2614.0,2613.7,2.5244]
[1748907906012,23.097,2613.9,2613.7,2.5244]
[1748907906317,2.6973,2614.2,2613.7,2.5244]
[1748907906519,2.6973,2614.2,2614.0,3.2078]
[1748907906819,2.69677,2614.2,2614.1,2.5244]
[1748907907411,1.9321,2614.2,2614.1,2.5244]
[1748907907710,23.86166,2614.3,2614.1,2.5244]
[1748907907911,4.79786,2614.3,2614.1,2.5244]
[1748907908118,0.76467,2614.2,2614.1,2.5244]
[1748907908319,4.0332,2614.3,2614.1,2.5244]
[1748907908814,0.76467,2614.2,2614.1,2.5244]
[1748907909111,4.0332,2614.3,2614.1,2.5244]
[1748907909314,4.79784,2614.3,2614.1,2.5244]
[1748907909519,2.8853,2614.3,2614.0,3.2078]
[1748907909721,2.8853,2614.3,2613.8,2.71]
[1748907909722,2.8853,2614.3,2613.8,5.4066]
[1748907909916,2.5919,2614.2,2613.8,5.4066]
[1748907910221,0.76474,2614.0,2613.8,2.6966]
[1748907910612,2.5919,2614.2,2613.8,2.6966]
[1748907911020,0.7647,2614.1,2613.8,2.6966]
[1748907911221,1.44405,2614.2,2613.8,2.6966]